[Event "Titled Tuesday Blitz April 12 Late 2022"]
[White "Bortnyk, Olexandr"]
[Black "Pakleza, Zbigniew"]
[WhiteFideId "14120828"]
[BlackFideId "1119290"]
[WhiteElo "2723"]
[BlackElo "2467"]
[Result "1-0"]
[Round "08"]
[TimeControl "180+1"]
[Date "2022.04.12"]
[WhiteClock "0:00:06"]
[BlackClock "0:00:01"]

1. d4 {[%clk 0:03:00]}  d5 {[%clk 0:02:58]} 2. Nc3 {[%clk 0:03:01]}  Bf5 {[%clk 0:02:57]} 3. Bf4 {[%clk 0:03:01]}  c6 {[%clk 0:02:55]} 4. e3 {[%clk 0:03:01]}  Nf6 {[%clk 0:02:55]} 5. Nf3 {[%clk 0:03:01]}  Nbd7 {[%clk 0:02:54]} 6. Ne5 {[%clk 0:02:58]}  h6 {[%clk 0:02:52]} 7. g4 {[%clk 0:02:58]}  Be4 {[%clk 0:02:49]} 8. Nxe4 {[%clk 0:02:56]}  Nxe4 {[%clk 0:02:48]} 9. Bg2 {[%clk 0:02:57]}  e6 {[%clk 0:02:43]} 10. Bxe4 {[%clk 0:02:45]}  dxe4 {[%clk 0:02:44]} 11. c3 {[%clk 0:02:43]}  Nxe5 {[%clk 0:02:10]} 12. Bxe5 {[%clk 0:02:38]}  Qd5 {[%clk 0:02:09]} 13. Qb3 {[%clk 0:02:38]}  Qxb3 {[%clk 0:02:03]} 14. axb3 {[%clk 0:02:39]}  a6 {[%clk 0:02:00]} 15. h4 {[%clk 0:02:36]}  f6 {[%clk 0:01:57]} 16. Bg3 {[%clk 0:02:35]}  h5 {[%clk 0:01:56]} 17. g5 {[%clk 0:02:26]}  Be7 {[%clk 0:01:40]} 18. gxf6 {[%clk 0:02:22]}  gxf6 {[%clk 0:01:41]} 19. Ke2 {[%clk 0:02:21]}  O-O {[%clk 0:01:38]} 20. Ra5 {[%clk 0:02:07]}  f5 {[%clk 0:01:26]} 21. c4 {[%clk 0:02:06]}  Kf7 {[%clk 0:01:10]} 22. Rd1 {[%clk 0:01:55]}  Bf6 {[%clk 0:00:44]} 23. b4 {[%clk 0:01:49]}  Rfd8 {[%clk 0:00:43]} 24. Rda1 {[%clk 0:01:43]}  Rac8 {[%clk 0:00:42]} 25. b3 {[%clk 0:01:41]}  Rd7 {[%clk 0:00:40]} 26. R1a2 {[%clk 0:01:38]}  Bd8 {[%clk 0:00:35]} 27. R5a4 {[%clk 0:01:36]}  Be7 {[%clk 0:00:34]} 28. Ra1 {[%clk 0:01:35]}  Bf6 {[%clk 0:00:33]} 29. Rg1 {[%clk 0:01:31]}  Rg8 {[%clk 0:00:32]} 30. Rc1 {[%clk 0:01:29]}  Rg4 {[%clk 0:00:32]} 31. Rh1 {[%clk 0:01:16]}  Rg8 {[%clk 0:00:32]} 32. Ra2 {[%clk 0:01:15]}  Be7 {[%clk 0:00:29]} 33. Ra4 {[%clk 0:01:07]}  Bf6 {[%clk 0:00:29]} 34. Ra5 {[%clk 0:01:00]}  Bd8 {[%clk 0:00:27]} 35. Raa1 {[%clk 0:00:57]}  Be7 {[%clk 0:00:26]} 36. b5 {[%clk 0:00:57]}  axb5 {[%clk 0:00:26]} 37. cxb5 {[%clk 0:00:58]}  cxb5 {[%clk 0:00:27]} 38. Ra5 {[%clk 0:00:56]}  b4 {[%clk 0:00:25]} 39. Rc1 {[%clk 0:00:56]}  Rg4 {[%clk 0:00:23]} 40. Rc8 {[%clk 0:00:46]}  Bxh4 {[%clk 0:00:23]} 41. Bxh4 {[%clk 0:00:47]}  Rxh4 {[%clk 0:00:24]} 42. Rh8 {[%clk 0:00:48]}  Kf6 {[%clk 0:00:17]} 43. Rh6+ {[%clk 0:00:44]}  Kg5 {[%clk 0:00:16]} 44. Rxe6 {[%clk 0:00:44]}  Rc7 {[%clk 0:00:10]} 45. Ree5 {[%clk 0:00:38]}  Rc2+ {[%clk 0:00:10]} 46. Kf1 {[%clk 0:00:39]}  Rh1+ {[%clk 0:00:07]} 47. Kg2 {[%clk 0:00:39]}  Rcc1 {[%clk 0:00:08]} 48. Rxf5+ {[%clk 0:00:38]}  Kg6 {[%clk 0:00:07]} 49. Kg3 {[%clk 0:00:31]}  Rcf1 {[%clk 0:00:05]} 50. Rg5+ {[%clk 0:00:16]}  Kh6 {[%clk 0:00:05]} 51. Rge5 {[%clk 0:00:16]}  Rhg1+ {[%clk 0:00:05]} 52. Kf4 {[%clk 0:00:17]}  Rxf2+ {[%clk 0:00:05]} 53. Kxe4 {[%clk 0:00:17]}  Rg4+ {[%clk 0:00:05]} 54. Kd3 {[%clk 0:00:17]}  h4 {[%clk 0:00:06]} 55. Rh5+ {[%clk 0:00:11]}  Kg6 {[%clk 0:00:07]} 56. Rh8 {[%clk 0:00:11]}  Kg7 {[%clk 0:00:02]} 57. Rah5 {[%clk 0:00:09]}  Rh2 {[%clk 0:00:02]} 58. R5h7+ {[%clk 0:00:09]}  Kf6 {[%clk 0:00:02]} 59. Rxb7 {[%clk 0:00:08]}  Rg3 {[%clk 0:00:01]} 60. Rh6+ {[%clk 0:00:06]} 1-0


[Site "https://www.chess.com"]

[Event "Titled Tuesday Blitz April 12 Late 2022"]
[White "Bryakin, Mikhail"]
[Black "Yedidia, Daniel"]
[WhiteFideId "4165314"]
[BlackFideId "30905907"]
[WhiteElo "2417"]
[BlackElo "2605"]
[Result "1-0"]
[Round "08"]
[TimeControl "180+1"]
[Date "2022.04.12"]
[WhiteClock "0:01:29"]
[BlackClock "0:00:06"]

1. e4 {[%clk 0:03:00]}  e5 {[%clk 0:03:00]} 2. Nf3 {[%clk 0:02:59]}  Nc6 {[%clk 0:03:00]} 3. Bb5 {[%clk 0:03:00]}  a6 {[%clk 0:03:01]} 4. Ba4 {[%clk 0:02:57]}  Nf6 {[%clk 0:03:00]} 5. O-O {[%clk 0:02:55]}  Be7 {[%clk 0:03:01]} 6. d3 {[%clk 0:02:55]}  b5 {[%clk 0:03:01]} 7. Bb3 {[%clk 0:02:55]}  d6 {[%clk 0:03:01]} 8. a4 {[%clk 0:02:52]}  b4 {[%clk 0:02:59]} 9. a5 {[%clk 0:02:47]}  O-O {[%clk 0:02:59]} 10. Nbd2 {[%clk 0:02:47]}  Bg4 {[%clk 0:02:59]} 11. h3 {[%clk 0:02:45]}  Bh5 {[%clk 0:03:00]} 12. Ba4 {[%clk 0:02:41]}  Nd4 {[%clk 0:03:00]} 13. c3 {[%clk 0:02:41]}  bxc3 {[%clk 0:02:59]} 14. bxc3 {[%clk 0:02:42]}  Ne6 {[%clk 0:02:58]} 15. Nc4 {[%clk 0:02:35]}  Rb8 {[%clk 0:02:53]} 16. Be3 {[%clk 0:02:31]}  Nd7 {[%clk 0:02:50]} 17. Bc2 {[%clk 0:02:26]}  Nf4 {[%clk 0:02:43]} 18. Kh2 {[%clk 0:02:19]}  Kh8 {[%clk 0:02:36]} 19. g3 {[%clk 0:02:19]}  Ne6 {[%clk 0:02:32]} 20. g4 {[%clk 0:02:16]}  Bg6 {[%clk 0:02:31]} 21. d4 {[%clk 0:02:16]}  exd4 {[%clk 0:02:29]} 22. cxd4 {[%clk 0:02:17]}  Nf6 {[%clk 0:02:12]} 23. d5 {[%clk 0:02:09]}  Nc5 {[%clk 0:01:55]} 24. Bxc5 {[%clk 0:02:08]}  dxc5 {[%clk 0:01:55]} 25. Qe2 {[%clk 0:02:08]}  Rb4 {[%clk 0:01:45]} 26. Nfe5 {[%clk 0:02:06]}  Bd6 {[%clk 0:01:43]} 27. f4 {[%clk 0:02:07]}  Re8 {[%clk 0:01:00]} 28. Nxg6+ {[%clk 0:01:58]}  hxg6 {[%clk 0:00:47]} 29. e5 {[%clk 0:01:59]}  Nxd5 {[%clk 0:00:39]} 30. Qd3 {[%clk 0:01:59]}  Rxc4 {[%clk 0:00:31]} 31. Qxc4 {[%clk 0:01:55]}  Ne3 {[%clk 0:00:31]} 32. Qxf7 {[%clk 0:01:54]}  Nxc2 {[%clk 0:00:27]} 33. exd6 {[%clk 0:01:50]}  Re2+ {[%clk 0:00:25]} 34. Kg3 {[%clk 0:01:50]}  Qxd6 {[%clk 0:00:22]} 35. Rad1 {[%clk 0:01:50]}  Rd2 {[%clk 0:00:18]} 36. Rxd2 {[%clk 0:01:43]}  Qxd2 {[%clk 0:00:19]} 37. Qxg6 {[%clk 0:01:35]}  Ne3 {[%clk 0:00:17]} 38. Rf2 {[%clk 0:01:33]}  Qe1 {[%clk 0:00:15]} 39. Qh5+ {[%clk 0:01:33]}  Kg8 {[%clk 0:00:15]} 40. Qe8+ {[%clk 0:01:33]}  Kh7 {[%clk 0:00:14]} 41. Qe4+ {[%clk 0:01:34]}  Kg8 {[%clk 0:00:13]} 42. Kf3 {[%clk 0:01:29]}  Qh1+ {[%clk 0:00:09]} 43. Kxe3 {[%clk 0:01:29]}  Qe1+ {[%clk 0:00:09]} 44. Re2 {[%clk 0:01:29]}  Qc1+ {[%clk 0:00:06]} 45. Kf2 {[%clk 0:01:29]} 1-0


[Site "https://www.chess.com"]

[Event "Titled Tuesday Blitz April 12 Late 2022"]
[White "De Souza, Cristiano Gomes"]
[Black "Mikhalsky, Vladimir"]
[WhiteFideId "2151758"]
[BlackFideId "14144352"]
[WhiteElo "2068"]
[BlackElo "2301"]
[Result "1-0"]
[Round "08"]
[TimeControl "180+1"]
[Date "2022.04.13"]
[WhiteClock "0:01:11"]
[BlackClock "0:00:14"]

1. d4 {[%clk 0:03:00]}  Nf6 {[%clk 0:02:58]} 2. c4 {[%clk 0:03:01]}  g6 {[%clk 0:02:59]} 3. Nc3 {[%clk 0:03:01]}  Bg7 {[%clk 0:02:59]} 4. e4 {[%clk 0:03:00]}  O-O {[%clk 0:03:00]} 5. Nf3 {[%clk 0:02:59]}  d6 {[%clk 0:03:00]} 6. Be2 {[%clk 0:02:58]}  e5 {[%clk 0:03:01]} 7. O-O {[%clk 0:02:58]}  Nc6 {[%clk 0:03:02]} 8. d5 {[%clk 0:02:58]}  Ne7 {[%clk 0:03:02]} 9. Ne1 {[%clk 0:02:58]}  Nd7 {[%clk 0:03:02]} 10. Be3 {[%clk 0:02:58]}  f5 {[%clk 0:03:02]} 11. f3 {[%clk 0:02:59]}  f4 {[%clk 0:03:01]} 12. Bf2 {[%clk 0:02:59]}  g5 {[%clk 0:03:01]} 13. Nb5 {[%clk 0:03:00]}  a6 {[%clk 0:03:00]} 14. Na7 {[%clk 0:02:59]}  h5 {[%clk 0:02:50]} 15. Nxc8 {[%clk 0:02:58]}  Qxc8 {[%clk 0:02:49]} 16. Rc1 {[%clk 0:02:57]}  b6 {[%clk 0:02:49]} 17. Nd3 {[%clk 0:02:51]}  a5 {[%clk 0:02:48]} 18. b3 {[%clk 0:02:49]}  Nc5 {[%clk 0:02:46]} 19. a3 {[%clk 0:02:44]}  Ng6 {[%clk 0:02:35]} 20. b4 {[%clk 0:02:44]}  axb4 {[%clk 0:02:34]} 21. axb4 {[%clk 0:02:43]}  Nxd3 {[%clk 0:02:33]} 22. Bxd3 {[%clk 0:02:44]}  g4 {[%clk 0:02:34]} 23. c5 {[%clk 0:02:44]}  bxc5 {[%clk 0:02:32]} 24. bxc5 {[%clk 0:02:44]}  g3 {[%clk 0:02:32]} 25. hxg3 {[%clk 0:02:41]}  fxg3 {[%clk 0:02:32]} 26. Bxg3 {[%clk 0:02:41]}  Bh6 {[%clk 0:02:31]} 27. Rc2 {[%clk 0:02:39]}  Qd8 {[%clk 0:01:48]} 28. Qe1 {[%clk 0:02:37]}  Bf4 {[%clk 0:01:38]} 29. Bf2 {[%clk 0:02:24]}  Ra3 {[%clk 0:01:36]} 30. Qe2 {[%clk 0:02:19]}  h4 {[%clk 0:01:26]} 31. Rb1 {[%clk 0:02:12]}  Bg3 {[%clk 0:01:23]} 32. cxd6 {[%clk 0:02:09]}  Nf4 {[%clk 0:01:16]} 33. Qf1 {[%clk 0:02:01]}  Bxf2+ {[%clk 0:01:06]} 34. Qxf2 {[%clk 0:01:56]}  Nxd3 {[%clk 0:01:05]} 35. dxc7 {[%clk 0:01:46]}  Qg5 {[%clk 0:01:00]} 36. Qd2 {[%clk 0:01:33]}  Qxd2 {[%clk 0:00:51]} 37. Rxd2 {[%clk 0:01:33]}  Rc3 {[%clk 0:00:51]} 38. d6 {[%clk 0:01:22]}  Kf7 {[%clk 0:00:34]} 39. Rb8 {[%clk 0:01:19]}  Rc1+ {[%clk 0:00:16]} 40. Kh2 {[%clk 0:01:17]}  Nf4 {[%clk 0:00:14]} 41. Rxf8+ {[%clk 0:01:11]}  Kxf8 {[%clk 0:00:14]} 42. d7 {[%clk 0:01:11]} 1-0


[Site "https://www.chess.com"]

[Event "Titled Tuesday Blitz April 12 Late 2022"]
[White "Djokic, Mihailo"]
[Black "Gharibyan, Mamikon"]
[WhiteFideId "976440"]
[BlackFideId "13308300"]
[WhiteElo "2202"]
[BlackElo "2254"]
[Result "1-0"]
[Round "08"]
[TimeControl "180+1"]
[Date "2022.04.12"]
[WhiteClock "0:00:18"]
[BlackClock "0:00:10"]

1. e4 {[%clk 0:03:00]}  c5 {[%clk 0:02:48]} 2. Nf3 {[%clk 0:03:00]}  Nc6 {[%clk 0:02:48]} 3. d4 {[%clk 0:03:01]}  cxd4 {[%clk 0:02:49]} 4. Nxd4 {[%clk 0:03:02]}  Nf6 {[%clk 0:02:48]} 5. Nc3 {[%clk 0:03:03]}  d6 {[%clk 0:02:49]} 6. Bg5 {[%clk 0:03:02]}  e6 {[%clk 0:02:47]} 7. Qd2 {[%clk 0:03:03]}  a6 {[%clk 0:02:47]} 8. O-O-O {[%clk 0:03:03]}  Bd7 {[%clk 0:02:47]} 9. f4 {[%clk 0:03:02]}  b5 {[%clk 0:02:45]} 10. Bxf6 {[%clk 0:02:55]}  gxf6 {[%clk 0:02:46]} 11. Nxc6 {[%clk 0:02:51]}  Bxc6 {[%clk 0:02:44]} 12. Qe1 {[%clk 0:02:51]}  h5 {[%clk 0:02:40]} 13. Kb1 {[%clk 0:02:51]}  Qb6 {[%clk 0:02:35]} 14. Nd5 {[%clk 0:02:45]}  Bxd5 {[%clk 0:02:22]} 15. exd5 {[%clk 0:02:45]}  e5 {[%clk 0:02:22]} 16. Bd3 {[%clk 0:02:44]}  O-O-O {[%clk 0:02:10]} 17. Rf1 {[%clk 0:02:40]}  Kb8 {[%clk 0:02:07]} 18. Qh4 {[%clk 0:02:35]}  Be7 {[%clk 0:02:06]} 19. Be2 {[%clk 0:02:25]}  Rc8 {[%clk 0:02:04]} 20. Qh3 {[%clk 0:02:20]}  Qc5 {[%clk 0:01:54]} 21. Bd3 {[%clk 0:02:14]}  h4 {[%clk 0:01:50]} 22. fxe5 {[%clk 0:02:07]}  fxe5 {[%clk 0:01:31]} 23. Rxf7 {[%clk 0:02:00]}  Rc7 {[%clk 0:01:31]} 24. Qe6 {[%clk 0:01:53]}  Bg5 {[%clk 0:01:30]} 25. Rxc7 {[%clk 0:01:48]}  Qxc7 {[%clk 0:01:28]} 26. Rf1 {[%clk 0:01:47]}  Bf4 {[%clk 0:01:28]} 27. a3 {[%clk 0:01:37]}  Rh6 {[%clk 0:01:17]} 28. Qe8+ {[%clk 0:01:32]}  Qc8 {[%clk 0:01:17]} 29. Qe7 {[%clk 0:01:27]}  Qg4 {[%clk 0:00:40]} 30. Qf8+ {[%clk 0:01:14]}  Kb7 {[%clk 0:00:36]} 31. Bf5 {[%clk 0:01:13]}  Qe2 {[%clk 0:00:24]} 32. Qc8+ {[%clk 0:01:02]}  Kb6 {[%clk 0:00:23]} 33. Qc6+ {[%clk 0:00:57]}  Ka7 {[%clk 0:00:22]} 34. Qc7+ {[%clk 0:00:55]}  Ka8 {[%clk 0:00:22]} 35. Qc6+ {[%clk 0:00:34]}  Ka7 {[%clk 0:00:21]} 36. Rf3 {[%clk 0:00:27]}  Rh8 {[%clk 0:00:13]} 37. Rc3 {[%clk 0:00:21]}  Rb8 {[%clk 0:00:13]} 38. Bc8 {[%clk 0:00:19]}  Bd2 {[%clk 0:00:10]} 39. Qxa6# {[%clk 0:00:18]} 1-0


[Site "https://www.chess.com"]

[Event "Titled Tuesday Blitz April 12 Late 2022"]
[White "Goryachkina, Aleksandra"]
[Black "Rozman, Levy"]
[WhiteFideId "4147103"]
[BlackFideId "2039877"]
[WhiteElo "2426"]
[BlackElo "2376"]
[Result "0-1"]
[Round "08"]
[TimeControl "180+1"]
[Date "2022.04.12"]
[WhiteClock "0:00:01"]
[BlackClock "0:00:03"]

1. e4 {[%clk 0:02:59]}  d5 {[%clk 0:02:57]} 2. exd5 {[%clk 0:02:58]}  Nf6 {[%clk 0:02:57]} 3. d4 {[%clk 0:02:53]}  Bg4 {[%clk 0:02:57]} 4. Be2 {[%clk 0:02:51]}  Bxe2 {[%clk 0:02:57]} 5. Nxe2 {[%clk 0:02:51]}  Qxd5 {[%clk 0:02:58]} 6. O-O {[%clk 0:02:50]}  Nc6 {[%clk 0:02:58]} 7. c3 {[%clk 0:02:36]}  O-O-O {[%clk 0:02:58]} 8. Qb3 {[%clk 0:02:35]}  e5 {[%clk 0:02:51]} 9. dxe5 {[%clk 0:02:21]}  Qxe5 {[%clk 0:02:45]} 10. Ng3 {[%clk 0:02:09]}  h5 {[%clk 0:02:44]} 11. Qc2 {[%clk 0:01:31]}  g6 {[%clk 0:02:31]} 12. Nd2 {[%clk 0:01:25]}  h4 {[%clk 0:02:16]} 13. Nf3 {[%clk 0:01:23]}  Qd5 {[%clk 0:01:55]} 14. Bg5 {[%clk 0:01:17]}  Bg7 {[%clk 0:01:40]} 15. Bxf6 {[%clk 0:01:14]}  Bxf6 {[%clk 0:01:39]} 16. Ne4 {[%clk 0:01:14]}  Be7 {[%clk 0:01:35]} 17. Rfd1 {[%clk 0:01:10]}  Qf5 {[%clk 0:01:32]} 18. h3 {[%clk 0:01:07]}  Qf4 {[%clk 0:01:26]} 19. b4 {[%clk 0:00:55]}  f5 {[%clk 0:01:24]} 20. Ned2 {[%clk 0:00:54]}  g5 {[%clk 0:01:17]} 21. b5 {[%clk 0:00:54]}  Ne5 {[%clk 0:01:11]} 22. Nxe5 {[%clk 0:00:52]}  Qxe5 {[%clk 0:01:12]} 23. Nf3 {[%clk 0:00:50]}  Qxb5 {[%clk 0:01:09]} 24. Nd4 {[%clk 0:00:50]}  Qe5 {[%clk 0:00:45]} 25. Re1 {[%clk 0:00:49]}  Qf6 {[%clk 0:00:38]} 26. Nxf5 {[%clk 0:00:26]}  Bc5 {[%clk 0:00:35]} 27. Rad1 {[%clk 0:00:23]}  Rdf8 {[%clk 0:00:31]} 28. Ne3 {[%clk 0:00:21]}  Kb8 {[%clk 0:00:26]} 29. Ng4 {[%clk 0:00:20]}  Qb6 {[%clk 0:00:25]} 30. Re2 {[%clk 0:00:20]}  a5 {[%clk 0:00:25]} 31. a4 {[%clk 0:00:19]}  Re8 {[%clk 0:00:23]} 32. Rde1 {[%clk 0:00:18]}  Rd8 {[%clk 0:00:22]} 33. Re6 {[%clk 0:00:17]}  c6 {[%clk 0:00:21]} 34. Qf5 {[%clk 0:00:17]}  Rhf8 {[%clk 0:00:18]} 35. Qxg5 {[%clk 0:00:09]}  Bxf2+ {[%clk 0:00:17]} 36. Nxf2 {[%clk 0:00:09]}  Qxf2+ {[%clk 0:00:18]} 37. Kh1 {[%clk 0:00:09]}  Qg3 {[%clk 0:00:05]} 38. Qxg3+ {[%clk 0:00:04]}  hxg3 {[%clk 0:00:06]} 39. R6e3 {[%clk 0:00:04]}  Rg8 {[%clk 0:00:06]} 40. Rf1 {[%clk 0:00:02]}  Rd2 {[%clk 0:00:06]} 41. Kg1 {[%clk 0:00:01]}  Ra2 {[%clk 0:00:05]} 42. Rff3 {[%clk 0:00:02]}  Ra1+ {[%clk 0:00:05]} 43. Rf1 {[%clk 0:00:02]}  Rxa4 {[%clk 0:00:06]} 44. Rff3 {[%clk 0:00:01]}  Ra1+ {[%clk 0:00:06]} 45. Rf1 {[%clk 0:00:02]}  Rxf1+ {[%clk 0:00:07]} 46. Kxf1 {[%clk 0:00:02]}  a4 {[%clk 0:00:07]} 47. Ke2 {[%clk 0:00:02]}  b5 {[%clk 0:00:06]} 48. Kd2 {[%clk 0:00:01]}  Kb7 {[%clk 0:00:06]} 49. Kc2 {[%clk 0:00:02]}  Kb6 {[%clk 0:00:07]} 50. Kb2 {[%clk 0:00:01]}  Kc5 {[%clk 0:00:07]} 51. Re5+ {[%clk 0:00:01]}  Kc4 {[%clk 0:00:07]} 52. Re6 {[%clk 0:00:02]}  c5 {[%clk 0:00:05]} 53. Re4+ {[%clk 0:00:02]}  Kd5 {[%clk 0:00:03]} 54. Re3 {[%clk 0:00:02]}  b4 {[%clk 0:00:02]} 55. cxb4 {[%clk 0:00:02]}  cxb4 {[%clk 0:00:03]} 56. Rf3 {[%clk 0:00:02]}  Re8 {[%clk 0:00:02]} 57. Rf5+ {[%clk 0:00:01]}  Re5 {[%clk 0:00:02]} 58. Rxe5+ {[%clk 0:00:01]}  Kxe5 {[%clk 0:00:03]} 59. Kc2 {[%clk 0:00:01]}  Ke4 {[%clk 0:00:03]} 60. Kb2 {[%clk 0:00:01]}  Ke3 {[%clk 0:00:03]} 61. Ka2 {[%clk 0:00:01]}  Kf2 {[%clk 0:00:03]} 62. h4 {[%clk 0:00:01]}  Kxg2 {[%clk 0:00:04]} 63. h5 {[%clk 0:00:01]}  Kf2 {[%clk 0:00:05]} 64. h6 {[%clk 0:00:01]}  g2 {[%clk 0:00:06]} 65. h7 {[%clk 0:00:02]}  g1=Q {[%clk 0:00:06]} 66. h8=Q {[%clk 0:00:02]}  Qg4 {[%clk 0:00:05]} 67. Qf8+ {[%clk 0:00:01]}  Kg1 {[%clk 0:00:04]} 68. Qc5+ {[%clk 0:00:01]}  Kh1 {[%clk 0:00:03]} 0-1


[Site "https://www.chess.com"]

[Event "Titled Tuesday Blitz April 12 Late 2022"]
[White "Grave, Jacob Templen"]
[Black "Sailer, Mike"]
[WhiteFideId "1542656"]
[BlackFideId "2012901"]
[WhiteElo "1737"]
[BlackElo "2109"]
[Result "1-0"]
[Round "08"]
[TimeControl "180+1"]
[Date "2022.04.13"]
[WhiteClock "0:00:20"]
[BlackClock "0:00:21"]

1. c4 {[%clk 0:02:58]}  c6 {[%clk 0:02:59]} 2. g3 {[%clk 0:02:55]}  d5 {[%clk 0:02:56]} 3. Bg2 {[%clk 0:02:55]}  Nf6 {[%clk 0:02:55]} 4. Nf3 {[%clk 0:02:56]}  Bf5 {[%clk 0:02:52]} 5. O-O {[%clk 0:02:52]}  e6 {[%clk 0:02:52]} 6. d4 {[%clk 0:02:50]}  Bd6 {[%clk 0:02:42]} 7. Nc3 {[%clk 0:02:42]}  O-O {[%clk 0:02:39]} 8. Nd2 {[%clk 0:02:35]}  h6 {[%clk 0:02:38]} 9. e4 {[%clk 0:02:30]}  Nxe4 {[%clk 0:02:32]} 10. Ndxe4 {[%clk 0:02:29]}  Bxe4 {[%clk 0:02:31]} 11. Nxe4 {[%clk 0:02:30]}  dxe4 {[%clk 0:02:32]} 12. Bxe4 {[%clk 0:02:30]}  Nd7 {[%clk 0:02:32]} 13. b3 {[%clk 0:02:16]}  Qc7 {[%clk 0:02:14]} 14. Bb2 {[%clk 0:02:08]}  Rad8 {[%clk 0:02:03]} 15. Qf3 {[%clk 0:02:02]}  f5 {[%clk 0:01:43]} 16. Bc2 {[%clk 0:01:57]}  c5 {[%clk 0:01:38]} 17. Rad1 {[%clk 0:01:26]}  cxd4 {[%clk 0:01:32]} 18. Bxd4 {[%clk 0:01:24]}  Bc5 {[%clk 0:01:25]} 19. Bb2 {[%clk 0:01:20]}  b6 {[%clk 0:01:07]} 20. Rfe1 {[%clk 0:01:18]}  Rfe8 {[%clk 0:01:00]} 21. Qh5 {[%clk 0:01:13]}  Nf6 {[%clk 0:00:59]} 22. Bxf6 {[%clk 0:00:54]}  gxf6 {[%clk 0:00:59]} 23. Rxd8 {[%clk 0:00:46]}  Rxd8 {[%clk 0:00:57]} 24. Rxe6 {[%clk 0:00:39]}  Bxf2+ {[%clk 0:00:49]} 25. Kxf2 {[%clk 0:00:32]}  Rd2+ {[%clk 0:00:39]} 26. Re2 {[%clk 0:00:31]}  Qc5+ {[%clk 0:00:34]} 27. Kf1 {[%clk 0:00:24]}  Rxe2 {[%clk 0:00:34]} 28. Qxe2 {[%clk 0:00:21]}  Kf7 {[%clk 0:00:25]} 29. Qd3 {[%clk 0:00:20]}  Qe5 {[%clk 0:00:21]} 30. Qd5+ {[%clk 0:00:19]}  Qxd5 {[%clk 0:00:21]} 31. cxd5 {[%clk 0:00:20]} 1-0


[Site "https://www.chess.com"]

[Event "Titled Tuesday Blitz April 12 Late 2022"]
[White "Jaferian, Koosha"]
[Black "Dahlgren, James Allen"]
[WhiteFideId "12507440"]
[BlackFideId "22256873"]
[WhiteElo "2030"]
[BlackElo "2090"]
[Result "1-0"]
[Round "08"]
[TimeControl "180+1"]
[Date "2022.04.13"]
[WhiteClock "0:01:26"]
[BlackClock "0:00:04"]

1. d4 {[%clk 0:03:00]}  e6 {[%clk 0:02:59]} 2. c4 {[%clk 0:03:01]}  c5 {[%clk 0:02:59]} 3. Nf3 {[%clk 0:03:00]}  cxd4 {[%clk 0:02:59]} 4. Nxd4 {[%clk 0:03:01]}  Nf6 {[%clk 0:02:59]} 5. Nc3 {[%clk 0:03:01]}  Nc6 {[%clk 0:02:58]} 6. g3 {[%clk 0:03:01]}  Bb4 {[%clk 0:02:59]} 7. Bg2 {[%clk 0:03:01]}  O-O {[%clk 0:02:58]} 8. O-O {[%clk 0:03:01]}  Qa5 {[%clk 0:02:57]} 9. Nb3 {[%clk 0:02:59]}  Qh5 {[%clk 0:02:56]} 10. Bd2 {[%clk 0:02:57]}  d5 {[%clk 0:02:52]} 11. cxd5 {[%clk 0:02:55]}  exd5 {[%clk 0:02:53]} 12. e4 {[%clk 0:02:48]}  Bg4 {[%clk 0:02:46]} 13. f3 {[%clk 0:02:47]}  Bh3 {[%clk 0:02:46]} 14. exd5 {[%clk 0:02:45]}  Bxg2 {[%clk 0:02:42]} 15. Kxg2 {[%clk 0:02:45]}  Nxd5 {[%clk 0:02:41]} 16. Nxd5 {[%clk 0:02:45]}  Qxd5 {[%clk 0:02:39]} 17. Bxb4 {[%clk 0:02:44]}  Nxb4 {[%clk 0:02:35]} 18. a3 {[%clk 0:02:30]}  Nd3 {[%clk 0:02:30]} 19. Qd2 {[%clk 0:02:28]}  Rad8 {[%clk 0:02:26]} 20. Nc1 {[%clk 0:02:09]}  Rfe8 {[%clk 0:01:42]} 21. Nxd3 {[%clk 0:02:05]}  Qxd3 {[%clk 0:01:42]} 22. Qxd3 {[%clk 0:02:06]}  Rxd3 {[%clk 0:01:42]} 23. Rf2 {[%clk 0:02:07]}  Ree3 {[%clk 0:01:31]} 24. Rc1 {[%clk 0:02:07]}  h5 {[%clk 0:01:30]} 25. Rc8+ {[%clk 0:02:03]}  Kh7 {[%clk 0:01:30]} 26. Rc7 {[%clk 0:02:04]}  Rb3 {[%clk 0:01:18]} 27. Rxf7 {[%clk 0:02:03]}  Kg6 {[%clk 0:01:19]} 28. Rd7 {[%clk 0:01:58]}  a5 {[%clk 0:01:14]} 29. Rc2 {[%clk 0:01:47]}  Rxf3 {[%clk 0:01:09]} 30. Rcc7 {[%clk 0:01:47]}  Rf6 {[%clk 0:00:29]} 31. Rxg7+ {[%clk 0:01:47]}  Kf5 {[%clk 0:00:28]} 32. Rc5+ {[%clk 0:01:47]}  Ke6 {[%clk 0:00:27]} 33. Rc2 {[%clk 0:01:44]}  b5 {[%clk 0:00:21]} 34. Rg5 {[%clk 0:01:42]}  Rf5 {[%clk 0:00:20]} 35. Rc6+ {[%clk 0:01:41]}  Kd5 {[%clk 0:00:17]} 36. Rxf5+ {[%clk 0:01:41]}  Kxc6 {[%clk 0:00:16]} 37. Rf2 {[%clk 0:01:40]}  b4 {[%clk 0:00:15]} 38. axb4 {[%clk 0:01:41]}  Rxb4 {[%clk 0:00:12]} 39. h3 {[%clk 0:01:38]}  a4 {[%clk 0:00:12]} 40. Rd2 {[%clk 0:01:36]}  Rb3 {[%clk 0:00:09]} 41. g4 {[%clk 0:01:36]}  hxg4 {[%clk 0:00:08]} 42. hxg4 {[%clk 0:01:37]}  a3 {[%clk 0:00:09]} 43. bxa3 {[%clk 0:01:37]}  Rxa3 {[%clk 0:00:10]} 44. Rd1 {[%clk 0:01:33]}  Kc5 {[%clk 0:00:08]} 45. g5 {[%clk 0:01:29]}  Kc6 {[%clk 0:00:04]} 46. Rd4 {[%clk 0:01:26]} 1-0


[Site "https://www.chess.com"]

[Event "Titled Tuesday Blitz April 12 Late 2022"]
[White "Janturin, Artur"]
[Black "Harish, Neeraj"]
[WhiteFideId "4130022"]
[BlackFideId "30958130"]
[WhiteElo "2358"]
[BlackElo "1574"]
[Result "1-0"]
[Round "08"]
[TimeControl "180+1"]
[Date "2022.04.13"]
[WhiteClock "0:01:29"]
[BlackClock "0:00:14"]

1. b3 {[%clk 0:02:55]}  e5 {[%clk 0:02:54]} 2. Bb2 {[%clk 0:02:55]}  Nc6 {[%clk 0:02:54]} 3. e3 {[%clk 0:02:54]}  d5 {[%clk 0:02:53]} 4. Bb5 {[%clk 0:02:52]}  Bd6 {[%clk 0:02:52]} 5. f4 {[%clk 0:02:51]}  exf4 {[%clk 0:02:46]} 6. Bxg7 {[%clk 0:02:50]}  Qh4+ {[%clk 0:02:45]} 7. Kf1 {[%clk 0:02:45]}  fxe3 {[%clk 0:02:31]} 8. Qe1 {[%clk 0:02:43]}  Qf4+ {[%clk 0:02:22]} 9. Nf3 {[%clk 0:02:42]}  Ne7 {[%clk 0:01:11]} 10. Bxh8 {[%clk 0:02:42]}  Bg4 {[%clk 0:01:06]} 11. Qxe3 {[%clk 0:02:39]}  Qf5 {[%clk 0:01:06]} 12. Bxc6+ {[%clk 0:02:14]}  bxc6 {[%clk 0:01:04]} 13. Nc3 {[%clk 0:02:08]}  O-O-O {[%clk 0:00:47]} 14. Bd4 {[%clk 0:02:07]}  c5 {[%clk 0:00:41]} 15. Bxc5 {[%clk 0:02:01]}  Bxc5 {[%clk 0:00:40]} 16. Qxc5 {[%clk 0:02:02]}  Bxf3 {[%clk 0:00:39]} 17. Qf2 {[%clk 0:01:59]}  Bg4 {[%clk 0:00:30]} 18. Qxf5+ {[%clk 0:01:56]}  Bxf5 {[%clk 0:00:31]} 19. d3 {[%clk 0:01:54]}  d4 {[%clk 0:00:27]} 20. Ne2 {[%clk 0:01:51]}  Bg4 {[%clk 0:00:24]} 21. h3 {[%clk 0:01:46]}  Bxe2+ {[%clk 0:00:21]} 22. Kxe2 {[%clk 0:01:47]}  Nd5 {[%clk 0:00:21]} 23. Raf1 {[%clk 0:01:36]}  Nc3+ {[%clk 0:00:19]} 24. Kd2 {[%clk 0:01:36]}  Re8 {[%clk 0:00:19]} 25. Re1 {[%clk 0:01:36]}  Rd8 {[%clk 0:00:18]} 26. Rhf1 {[%clk 0:01:34]}  Rd7 {[%clk 0:00:18]} 27. Re8+ {[%clk 0:01:29]}  Kb7 {[%clk 0:00:18]} 28. Rf8 {[%clk 0:01:29]}  Re7 {[%clk 0:00:14]} 29. Rf2 {[%clk 0:01:29]} 1-0


[Site "https://www.chess.com"]